Cogmind - Beta 9.2 @@@ ROGUE MODE // 2019.12.14 @ 02:01:30 Player: Cotonou Result: Destroyed by Y-45 Defender with Heavy Assault Rifle Performance ------------- Evolutions (1) 500 Regions Visited (2) 400 Robots Destroyed (30) 150 Value Destroyed (567) 567 Prototype IDs (4) 80 Alien Tech Used (0) 0 Bonus (14) 14 TOTAL SCORE: 1711 Bonus ------- High Alert Combat Kills 14 Cogmind --------- Core Integrity 0/400 Matter 40/300 Energy 100/100 System Corruption 0% Temperature Cool (9) Movement Flying (120) Ox1 Location -9/Materials Parts ------- > --- POWER (1) -------- (None) > --- PROPULSION (2) --- Flight Unit > --- UTILITY (4) ------ Visual Processing Unit ECM Suite Utility Shielding > --- WEAPON (2) ------- Improved Assault Rifle Improved Assault Rifle > --- INVENTORY (4) ---- Small Storage Unit Large Storage Unit Peak State ------------ > --- POWER ------------ Light Ion Engine > --- PROPULSION ------- Wheel Compact Wheel > --- UTILITY ---------- Small Storage Unit Visual Processing Unit ECM Suite Utility Shielding > --- WEAPON ----------- Particle Gun Mini Grenade Launcher > --- INVENTORY -------- Hover Unit Flight Unit Weight Redist. System Datajack [Rating: 12] Favorites ----------- Power Light Ion Engine Engine Light Ion Engine Propulsion Compact Wheel Leg Aluminum Leg Wheel Compact Wheel Hover Unit Hover Unit Flight Unit Flight Unit Utility Small Storage Unit Device ECM Suite Storage Small Storage Unit Processor Visual Processing Unit Protection Utility Shielding Weapon Mini Grenade Launcher Energy Gun Particle Gun Energy Cannon Particle Cannon Ballistic Gun Improved Assault Rifle Launcher Mini Grenade Launcher Special Melee Weapon Datajack Build | -11 -10 -9 ------- Run | Scr Mat Mat Slots Evolved 2 | . . 2 Power . | . . . Propulsion . | . . . Utility 2 | . . 2 Weapon . | . . . Parts Attached 34 | 7 5 22 Power 4 | 1 . 3 Engine 4 | 1 . 3 Core . | . . . Reactor . | . . . Propulsion 9 | 3 . 6 Treads . | . . . Leg 1 | 1 . . Wheel 4 | 2 . 2 Hover 1 | . . 1 Flight 3 | . . 3 Utility 9 | 1 2 6 Device 3 | . . 3 Storage 2 | 1 . 1 Processor 1 | . . 1 Hackware . | . . . Protection 3 | . 2 1 Artifact . | . . . Weapon 12 | 2 3 7 Energy Gun 3 | 1 1 1 Energy Cannon 1 | . . 1 Ballistic Gun 5 | 1 . 4 Ballistic Cannon . | . . . Launcher 1 | . 1 . Special Weapon . | . . . Impact Weapon . | . . . Slashing Weapon . | . . . Piercing Weapon . | . . . Special Melee Weapon 2 | . 1 1 Unidentified Prototypes . | . . . Parts Lost 12 | . . 12 Power 4 | . . 4 Propulsion 4 | . . 4 Utility 2 | . . 2 Weapon 2 | . . 2 Highest Loss Streak 5 | . . 5 Average Slot Usage (%) 87 | . 99 80 Engine 8 | . 14 5 Wheel 18 | . 28 12 Flight 4 | . . 7 Device 8 | . . 13 Storage 9 | . 14 6 Processor 3 | . . 5 Protection 13 | . 13 12 Energy Gun 6 | . 14 1 Ballistic Gun 1 | . . 2 Launcher 9 | . 14 6 Special Melee Weapon 3 | . . 6 Naked Turns . | . . . Heaviest Build 18 | 11 18 18 Greatest Support 32 | 26 26 32 Greatest Overweight (x) 3 | 1 . 3 Average Overweight (x) . | . . . Largest Inventory Capacity 6 | 6 6 6 Average Capacity 5 | 5 6 5 Most Carried 6 | 2 4 6 Average Carried 2 | . . 3 Final Capacity 6 | 6 6 4 Final Carried 4 | . 4 2 Class Distribution -------------------- 93% | Mutant 6% | Infiltrator-Mutant Dominant Class ---------------- Mutant | -10/Materials Mutant | -9/Materials Resources | -11 -10 -9 ----------- Run | Scr Mat Mat Matter Collected 556 | 190 160 206 Remotely . | . . . Salvage Created 506 | . 142 364 Parts 47 | . 9 38 Haulers Intercepted 1 | . 1 . Recyclers Shooed 1 | . . 1 Parts Field Recycled . | . . . Retrieved Matter . | . . . Parts Self-Destructed . | . . . Prevented . | . . . Kills | -11 -10 -9 ------- Run | Scr Mat Mat Combat Hostiles Destroyed 22 | . 5 17 Guns 3 | . . 3 AOE 19 | . 5 14 Classes Destroyed 7 | . 4 3 Builder 3 | . . 3 Hauler 1 | . 1 . Recycler 2 | . . 2 Operator 2 | . 1 1 Swarmer 14 | . 3 11 Grunt 4 | . 2 2 Sentry 4 | . . 4 Best Kill Streak 8 | . 5 8 Combat Bots Only 5 | . 5 5 Max Kills in Single Turn 3 | . 3 3 Gunslinging . | . . . Exploded 3 | . 3 3 Melee . | . . . Uniques/NPCs Destroyed . | . . . Combat | -11 -10 -9 -------- Run | Scr Mat Mat Damage Taken 1168 | . 67 1101 Core 410 | . . 410 Absorbed by Shields . | . . . Core Remaining (%) 100 | 100 100 . Volleys Fired 43 | . 9 34 Largest 2 | . 1 2 Hottest 65 | . 65 46 Shots Fired 54 | . 9 45 Gun 27 | . 5 22 Cannon . | . . . Launcher 27 | . 4 23 Special . | . . . Kinetic 22 | . . 22 Thermal 5 | . 5 . Explosive 27 | . 4 23 Electromagnetic . | . . . Robot Hit Streak 11 | . 4 11 Robot Miss Streak 3 | . 1 3 Penetration Max . | . . . Secondary Targets . | . . . Shots Hit Robots 41 | . 7 34 Core Hits 44 | . 7 37 Critical Hits . | . . . Critical Kills . | . . . Critical Parts Destroyed . | . . . Melee Attacks 5 | . . 5 Impact . | . . . Slashing . | . . . Piercing . | . . . Sneak Attacks 3 | . . 3 Combat Hostiles . | . . . Follow-up Attacks . | . . . Damage Inflicted 2275 | . 308 1967 Guns 382 | . 80 302 Cannons . | . . . Explosions 1893 | . 228 1665 Melee . | . . . Ramming . | . . . Kinetic 302 | . . 302 Thermal 80 | . 80 . Explosive 1893 | . 228 1665 Electromagnetic . | . . . Impact . | . . . Slashing . | . . . Piercing . | . . . Highest Corruption . | . . . Average Corruption . | . . . Corruption Purged . | . . . Overload Shots . | . . . Overflow Damage 183 | . . 183 Projectiles . | . . . Explosions 183 | . . 183 Melee . | . . . Knockbacks . | . . . Impact . | . . . Kinetic . | . . . Secondary . | . . . Self-Inflicted Damage 321 | . 44 277 Shots 9 | . 1 8 Rammed . | . . . Targets Rammed . | . . . Kicked . | . . . Crushed . | . . . Highest Temperature 120 | . 120 4 Average Temperature 37 | . 50 1 Received Heat Transfer 303 | . 6 297 Siege Activations . | . . . Robots Corrupted . | . . . Combat Hostiles . | . . . Parts Fried . | . . . Impact Corruptions . | . . . Robots Melted . | . . . Combat Hostiles . | . . . Parts Melted . | . . . Heat Transferred 185 | . 185 . Parts Sabotaged . | . . . Parts Stolen . | . . . Parts Stripped . | . . . Power Chain Reactions . | . . . Missiles Intercepted . | . . . Alert | -11 -10 -9 ------- Run | Scr Mat Mat Peak Influence 512 | . 137 512 Average Influence 183 | . 25 307 Maximum Alert Level 2 | . . 2 Low Security (%) 61 | 100 100 31 Level 1 21 | . . 38 Level 2 17 | . . 30 Level 3 . | . . . Level 4 . | . . . Level 5 . | . . . High Security . | . . . Max Security . | . . . Squads Dispatched 3 | . 2 1 Investigation 1 | . 1 . Extermination . | . . . Reinforcement 2 | . 1 1 Assault . | . . . Garrison . | . . . Intercept . | . . . Construction Impeded . | . . . Haulers Reinforced . | . . . Stealth | -11 -10 -9 --------- Run | Scr Mat Mat Distress Signals . | . . . Communications Jammed . | . . . Distress Signals . | . . . Times Spotted 42 | . 9 33 Peak Tracking Total 8 | . 4 8 Tactical Retreats 7 | . 1 6 Traps | -11 -10 -9 ------- Run | Scr Mat Mat Traps Triggered 2 | . 2 . Indirectly . | . . . Trap Hack Attempts . | . . . Triggered . | . . . Disarmed . | . . . Reprogrammed . | . . . Reused . | . . . Traps Extracted . | . . . Installed . | . . . Triggered . | . . . Machines | -11 -10 -9 ---------- Run | Scr Mat Mat Machines Disabled 5 | . . 5 Max in Single Turn 2 | . . 2 Machines Sabotaged . | . . . Garrisons Compromised . | . . . Overloaded Fab Kills . | . . . Fab Network Shutdowns . | . . . Hacking | -11 -10 -9 --------- Run | Scr Mat Mat Machines Accessed 8 | . 4 4 Terminals 7 | . 3 4 Fabricators . | . . . Repair Stations . | . . . Recycling Units 1 | . 1 . Scanalyzers . | . . . Garrison Access . | . . . Total Hacks 14 | . 4 10 Successful 13 | . 4 9 Failed 1 | . . 1 Catastrophic . | . . . Database Lockouts . | . . . Manual . | . . . Terminals 13 | . 3 10 Fabricators . | . . . Repair Stations . | . . . Recycling Units 1 | . 1 . Scanalyzers . | . . . Garrison Access . | . . . Terminal Hacks 12 | . 3 9 Record 8 | . 2 6 Prototype ID Bank 2 | . 1 1 Maintenance Status 1 | . . 1 Recall Investigation 1 | . . 1 Fabricator Hacks . | . . . Repair Station Hacks . | . . . Recycling Unit Hacks 1 | . 1 . Report Inventory 1 | . 1 . Scanalyzer . | . . . Garrison Access Hacks . | . . . Unauthorized Hacks . | . . . Terminals . | . . . Fabricators . | . . . Repair Stations . | . . . Recycling Units . | . . . Scanalyzers . | . . . Garrison Access . | . . . Data Cores Recovered . | . . . Used . | . . . Hacking Detections 4 | . 2 2 Full Trace Events . | . . . Feedback Events . | . . . Feedback Blocked . | . . . Robot Schematics Acquired . | . . . Robots Built . | . . . Matter . | . . . Time . | . . . Total Robot Build Rating . | . . . Part Schematics Acquired . | . . . Parts Built . | . . . Matter . | . . . Time . | . . . Total Part Build Rating . | . . . Parts Repaired . | . . . Time . | . . . Parts Recycled . | . . . Recycled Matter . | . . . Retrieved Matter . | . . . Retrieved Components . | . . . Parts Scanalyzed . | . . . Part Schematics Acquired . | . . . Parts Damaged . | . . . Bothacking | -11 -10 -9 ------------ Run | Scr Mat Mat Used RIF Installer . | . . . Robots Hacked 3 | . . 3 Non-combat 1 | . . 1 Combat 2 | . . 2 Robot Hacks Applied 4 | . . 4 parse_system 3 | . . 3 no_distress 1 | . . 1 Relay Couplers Released . | . . . Robots Rewired . | . . . Allies Hacked . | . . . Hacks Repelled . | . . . Allies | -11 -10 -9 -------- Run | Scr Mat Mat Total Allies . | . . . Largest Group . | . . . Highest-Rated Group . | . . . Highest-Rated Ally . | . . . Total Orders . | . . . Ally Attacks . | . . . Total Damage . | . . . Kills . | . . . Allies Corrupted . | . . . Allies Melted . | . . . Intel | -11 -10 -9 ------- Run | Scr Mat Mat Robot Analysis Total . | . . . Derelict Logs Recovered . | . . . Drone Launches . | . . . Drone Recoveries . | . . . Exploration | -11 -10 -9 ------------- Run | Scr Mat Mat Turns Passed 822 | 70 286 466 Spaces Moved 772 | 61 278 433 Core 19 | 17 . 2 Treads . | . . . Legs . | . . . Wheels 507 | 44 278 185 Hover 11 | . . 11 Flight 235 | . . 235 Fastest Speed 37 | 50 90 37 Average Speed 76 | 85 90 67 Slowest Speed 200 | 100 90 200 Overloaded Moves . | . . . Propulsion Burnouts . | . . . Robots Hopped 1 | . . 1 Cave-ins Triggered . | . . . Exploration Rate (%) 39 | 5 57 56 Regions Visited 2 Branch Regions . Pre-discovered Areas . | . . . Known Exits Taken . | . . . Unknown Exits Taken 2 | 1 1 . Scrap Searched . | . . . Spaces Dug 10 | . 10 . Terrain Destroyed 188 | . 31 157 Melee . | . . . Projectile . | . . . AOE 188 | . 31 157 Actions | -11 -10 -9 --------- Run | Scr Mat Mat Total 948 | 79 305 564 Wait 41 | . . 41 Move 768 | 60 277 431 Hop 1 | . . 1 Pick Up 37 | 9 10 18 Fast Attach . | . . . Attach 30 | 6 2 22 Detach 3 | . . 3 Swap 4 | 1 3 . Drop 16 | 3 4 9 Fire 43 | . 9 34 Melee 5 | . . 5 Ram . | . . . Kick . | . . . Crush . | . . . Escape Stasis . | . . . Rewire . | . . . Trap . | . . . Miscellaneous . | . . . Route ------- -11/Scrapyard -10/Materials (discovered 2 exits: *Mat / [*Min]) -9/Materials (discovered 2 exits: [*Mat] / [*Min]) History --------- Turn | Location | Event 28 | -11/Scrapyard | Discovered new exit (range 15) 71 | -11/Scrapyard | Entered Materials 199 | -10/Materials | Met 8R-AWN 236 | -10/Materials | Discovered new exit (range 15) 302 | -10/Materials | Build established: Mutant 325 | -10/Materials | Discovered new exit (range 12) 357 | -10/Materials | Entered another Materials area 357 | -9/Materials | Evolved 2 slots: Utility x2 549 | -9/Materials | Core integrity fell below 50% 660 | -9/Materials | Discovered new exit (range 6) 686 | -9/Materials | Lost 5 parts (2p1n2w) 745 | -9/Materials | Discovered new exit (range 17) 798 | -9/Materials | Core integrity fell below 20% 823 | -9/Materials | Destroyed by Y-45 Defender with Heavy Assault Rifle Last Messages --------------- now populated by Derelicts. 00699_ Acquired Lrg. Storage Unit. 00702_ Acquired Sml. Storage Unit. 00717_ Flight Unit destroyed. 00717_ Weight Redist. System destroyed. 00745_ EXIT=FOUND 00752_ Acquired Imp. Assault Rifle. 00753_ Dropped Lgt. Assault Rifle. 00754_ Acquired Imp. Assault Rifle. 00761_ Dropped Datajack. 00778_ G-34 Mercenary destroyed. 00791_ Acquired 10 matter. [Achievement: Crack Shot] 00803_ Y-45 Defender destroyed. 00809_ Flight Unit destroyed. 00812_ Y-45 Defender destroyed. [Achievement: First Step to Greatness] [Achievement: Back For More] [Achievement: This Is Interesting...] [Achievement: Just Browsing] Map ----- +----------------------------------------------------+ | # #### # #????????????????????? | | ## ##??# # [ #????????????????????? | | ?# #???# + #????????????????????? | | ?# #???# ##/##+####????????????????????? | | ?# #???# #???????????????????????? | | ## ##??# #???????????????????????? | | #] #?##+#### #???????????????????????? | | # #?# # ####????????????????????? | | # #?# + !!##???????????????????? | | # #?# # !#???????????????????? | | # #?# # !#???????????????????? | | ###+##### + #???????????????????? | | # #### !#???????????????????? | | # #??# !##???????????????????? | | #######??####????????????????????? | | #????????????????????????????????? | | #????????????????????????????????? | | """" #????????????????????????????????? | | """" #????????????????????????????????? | | """" #????????????????????????????????? | | #####/#########################??????????? | | #??????????? | | !< #??????????? | | /* #??????????? | | #####+###########+########Y####??????????? | | ?# #??# ##*@%[! #??????????? | | ?# """ #??# !![## [ #??????????? | | ?# """ #??# ![ ## #??????????? | | ?# """ #??# ![[## #??????????? | | ?# #??# ## #??????????? | | ?# """ =#??# """ ## #??????????? | | ?# """ #??# """ #########??????????? | | ?# """ #??# """ #??????????????????? | | ?# #??# #??????????????????? | | ?##########??##########??????????????????? | | ?????????????????????????????????????????? | | | | | | | | | | | | | | | | | | | | | | | | | | | | | +----------------------------------------------------+ Best States ------------- Heat Dissipation 28 Energy Generation 10 Energy Capacity 125 Matter Stores 300 Matter Capacity 300 Sight Range 18 Terrain Scan Density 10 ECM Strength 1 Additional Mass Support 6 Armor Coverage 225 Utility Shielding 33 Evasion (%) 62 Item Schematics ----------------- None Robot Schematics ------------------ None Fabricated ------------ Nothing Alien Tech Used ----------------- None Achievements -------------- Back For More Crack Shot First Step to Greatness Just Browsing Loot Pinata This Is Interesting... Uninvited Guest Challenges ------------ None Game ------ Seed TargetBattleCompressor Manual? 0 Play Time 00:25:41 Cumulative 45.2 hours Start 2019.12.14 @ 01:36:33 End 2019.12.14 @ 02:01:30 Sessions 1 Manual Loads 0 Difficulty Rogue Special Mode None Game No. 54 Rogue 54 Adventurer 0 Explorer 0 Win Type - Total 2 Types 2/0/0/0/0/0/0 Lore% 34 Gallery% 47 Achievement% 2 Wizard Run 0 Options --------- ASCII 0 Keyboard 0 Movement Numpad Keybinds 0 Fullscreen 2 Font 24/Smallcaps Map View 76x50 Tactical HUD 1 Map Filters NONE Filters NONE Steam 1 RUN: 1c22a49b-680c-4c46-8a5d-77d983dc5f15